bitfinex-derivatives/quotes_BTCF0:USTF0_20250716
["timestamp","ask_amount","ask_price","bid_price","bid_amount"]
[1752673048598,1.40069853,118710.0,118700.0,0.001]
[1752673048795,1.09069853,118710.0,118700.0,0.001]
[1752673048999,0.54647173,118710.0,118700.0,0.001]
[1752673049400,0.5292538,118710.0,118700.0,0.001]
[1752673049601,0.54642704,118710.0,118700.0,0.001]
[1752673049804,0.54642704,118710.0,118700.0,0.1694679]
[1752673050007,0.54642704,118710.0,118700.0,0.001]
[1752673050302,0.54642704,118710.0,118700.0,0.1694679]
[1752673050699,0.54642704,118710.0,118700.0,0.001]
[1752673050895,1.09065384,118710.0,118700.0,0.001]
[1752673051497,1.41065384,118710.0,118700.0,0.001]
[1752673051696,0.1684678,118700.0,118690.0,0.60949]
[1752673051901,1.43066784,118700.0,118690.0,1e-07]
[1752673052102,0.168482,118690.0,118680.0,0.60525432]
[1752673052303,1.09068204,118690.0,118680.0,0.60525432]
[1752673052505,1.42068204,118690.0,118680.0,9.432e-05]
[1752673052809,0.2528062,118660.0,118650.0,0.1685374]
[1752673053004,0.2949403,118660.0,118650.0,0.7735374]
[1752673053406,0.6557403,118660.0,118650.0,0.7735374]
[1752673053604,0.2949403,118660.0,118650.0,0.605]
[1752673053805,0.29500767,118660.0,118650.0,0.7735388]
[1752673054199,0.29500767,118660.0,118650.0,0.605]
[1752673054200,0.65580767,118660.0,118650.0,0.605]
[1752673054510,0.65580767,118660.0,118650.0,0.7735388]
[1752673054711,0.65580767,118660.0,118650.0,0.605]
[1752673055314,0.6557403,118660.0,118650.0,0.609]
[1752673055613,1.093257,118660.0,118650.0,0.004]
[1752673055914,0.1685388,118650.0,118640.0,1.77377]
[1752673056114,0.16863297,118650.0,118640.0,1.942323]
[1752673056314,0.16863297,118650.0,118640.0,1.77377]
[1752673056808,0.16863297,118650.0,118640.0,1.76956]
[1752673057411,0.16863297,118650.0,118640.0,1.9381129]
[1752673058416,0.16863297,118650.0,118640.0,1.6967129]
[1752673058612,0.16863297,118650.0,118640.0,2.73944736]
[1752673059409,0.16863297,118650.0,118640.0,2.3020329]
[1752673059812,0.16863297,118650.0,118640.0,1.9412329]
[1752673062217,0.16867277,118650.0,118640.0,2.13412736]
[1752673062417,0.16867277,118650.0,118640.0,2.3022329]
[1752673062612,0.0421299,118670.0,118660.0,0.1685244]
[1752673062815,0.2527794,118670.0,118660.0,1.57225886]
[1752673063519,0.1685049,118680.0,118670.0,0.1685102]
[1752673063714,0.0842367,118700.0,118680.0,0.042123]
[1752673063911,0.2527137,118700.0,118690.0,1.1346017]
[1752673064311,0.7105942,118700.0,118690.0,1.1346017]
[1752673064719,0.7105942,118700.0,118690.0,0.96612]
[1752673064919,0.7105942,118700.0,118690.0,1.1346017]
[1752673065222,1.0713942,118700.0,118690.0,0.60532]
[1752673065422,0.1684817,118690.0,118680.0,0.361]
[1752673065625,0.1684817,118690.0,118680.0,1.1345759]
[1752673065820,0.1684817,118690.0,118680.0,0.96608]
[1752673066523,0.1684817,118690.0,118680.0,1.1345759]
[1752673066722,0.1684817,118690.0,118680.0,1.57199036]
[1752673066924,0.1704817,118690.0,118680.0,1.57199036]
[1752673067226,0.002,118690.0,118680.0,1.95130236]
[1752673067622,0.1704817,118690.0,118680.0,1.4138879]
[1752673067929,0.002,118690.0,118680.0,1.95130236]
[1752673068227,0.1704817,118690.0,118680.0,1.95130236]
[1752673068621,0.1704817,118690.0,118680.0,1.1638879]
[1752673068820,0.1684817,118690.0,118680.0,1.1638879]
[1752673069627,0.1684817,118690.0,118680.0,0.9953759]
[1752673070323,0.1684817,118690.0,118680.0,0.82688]
[1752673070531,0.1684817,118690.0,118680.0,0.60508]
[1752673071028,0.1684817,118690.0,118680.0,0.7735759]
[1752673072325,0.1859033,118690.0,118680.0,0.7735759]
[1752673072629,0.1879033,118690.0,118680.0,0.7735759]
[1752673075626,0.1879033,118690.0,118680.0,1.31876235]
[1752673075822,0.0194216,118690.0,118680.0,1.77956235]
[1752673076230,0.0194216,118690.0,118680.0,1.94807435]
[1752673076433,0.0194216,118690.0,118680.0,1.84807435]
[1752673076933,0.0194216,118690.0,118680.0,1.94807435]
[1752673077234,0.002,118690.0,118680.0,1.94807435]
[1752673078831,0.2106326,118700.0,118690.0,0.1684813]
[1752673078832,4e-05,118700.0,118690.0,0.1684813]
[1752673079026,0.1684332,118730.0,118720.0,0.2526549]
[1752673079233,0.18589322,118730.0,118720.0,1.48617745]
[1752673079425,0.18589322,118730.0,118720.0,0.8988823]
[1752673080130,0.54669322,118730.0,118720.0,0.60412]
[1752673080436,0.1684264,118720.0,118710.0,0.1686405]
[1752673080638,0.73107287,118720.0,118710.0,0.7730405]
[1752673080837,0.18588642,118720.0,118710.0,0.7730405]
[1752673081431,0.73107287,118720.0,118710.0,0.61297637]
[1752673081629,0.73107287,118720.0,118710.0,0.78141687]
[1752673081835,0.18588642,118720.0,118710.0,0.78141687]
[1752673082137,0.18588642,118720.0,118710.0,0.61289637]
[1752673082338,0.18588642,118720.0,118710.0,0.78133687]
[1752673082530,0.18588642,118720.0,118710.0,0.61289637]
[1752673083141,0.18588642,118720.0,118710.0,0.78133687]
[1752673083338,0.1684405,118710.0,118700.0,0.06769049]
[1752673083541,0.18590052,118710.0,118700.0,0.84018519]
[1752673083843,0.18590052,118710.0,118700.0,0.07170049]
[1752673084037,0.54670052,118710.0,118700.0,0.67622049]
[1752673084239,0.54670052,118710.0,118700.0,0.60873]
[1752673084439,1.09188697,118710.0,118700.0,0.6170889]
[1752673085651,1.09188697,118710.0,118700.0,0.7855436]
[1752673085850,0.18590052,118710.0,118700.0,0.7855436]
[1752673086545,0.18590052,118710.0,118700.0,0.85193564]
[1752673088443,0.01746002,118710.0,118700.0,1.75792209]
[1752673088645,0.01746002,118710.0,118700.0,2.16591009]
[1752673089046,0.6555072,118740.0,118730.0,0.1684084]
[1752673089246,0.6555072,118740.0,118730.0,0.7730084]
[1752673090045,0.2105056,118740.0,118730.0,0.7730084]
[1752673090246,0.2145056,118740.0,118730.0,0.7730084]
[1752673090442,0.004,118740.0,118730.0,1.77899485]
[1752673090841,0.1683942,118740.0,118730.0,1.31819485]
[1752673091041,0.1693942,118740.0,118730.0,1.32240485]
[1752673091242,0.71458065,118740.0,118730.0,0.7768183]
[1752673091437,0.1693942,118740.0,118730.0,0.7768183]
[1752673092046,0.1693942,118740.0,118730.0,0.60841]
[1752673092244,0.1693942,118740.0,118730.0,0.7768183]
[1752673093149,4e-05,118750.0,118730.0,1.51439645]
[1752673093343,4e-05,118750.0,118740.0,1.17438075]
[1752673093549,4e-05,118750.0,118740.0,0.6291943]
[1752673093746,4e-05,118750.0,118740.0,1.34281275]
[1752673094350,4e-05,118750.0,118740.0,2.33882075]
[1752673094647,4e-05,118750.0,118740.0,2.50725275]
[1752673095044,0.1684199,118750.0,118740.0,2.50725275]
[1752673095346,4e-05,118750.0,118740.0,2.33882075]
[1752673095943,0.2104513,118770.0,118760.0,0.1683658]
[1752673096147,0.168362,118770.0,118760.0,1.33675225]
[1752673096342,0.168362,118770.0,118760.0,0.7915658]
[1752673097140,0.529162,118770.0,118760.0,0.7915258]
[1752673097551,0.531162,118770.0,118760.0,0.7915258]
[1752673098053,0.170362,118770.0,118760.0,0.7915258]
[1752673098842,0.531162,118770.0,118760.0,0.7915258]
[1752673099845,0.1683658,118760.0,118750.0,0.0002]
[1752673100050,0.6133544,118760.0,118750.0,0.79074]
[1752673100252,0.6554487,118760.0,118750.0,0.79074]
[1752673100558,0.2525544,118760.0,118750.0,0.79074]
[1752673102457,0.6133544,118760.0,118750.0,0.79074]
[1752673102759,0.6133544,118760.0,118750.0,0.62236]
[1752673103263,0.6133544,118760.0,118750.0,0.79074]
[1752673103561,0.6133544,118760.0,118750.0,0.62236]
[1752673103751,0.6133544,118760.0,118750.0,0.7907399]
[1752673104356,1.15854085,118760.0,118750.0,0.62236]
[1752673105353,0.6133544,118760.0,118750.0,0.7907399]
[1752673105555,0.2104601,118760.0,118750.0,0.7907399]
[1752673105861,0.1683658,118760.0,118750.0,1.33592635]
[1752673106361,0.1683658,118760.0,118750.0,0.7907399]
[1752673106557,0.5291658,118760.0,118750.0,0.62236]
[1752673106758,0.5291658,118760.0,118750.0,0.7907399]
[1752673106953,0.1683799,118750.0,118740.0,1.3330227]
[1752673107157,1.07436635,118750.0,118740.0,1.16444]
[1752673107354,1.07436635,118750.0,118740.0,1.786]
[1752673107663,0.5291799,118750.0,118740.0,1.79021]
[1752673108462,0.5291799,118750.0,118740.0,1.79121]
[1752673109358,1.07436635,118750.0,118740.0,1.79121]
[1752673109662,0.5291799,118750.0,118740.0,1.79121]
[1752673109865,1.07436635,118750.0,118740.0,1.79121]
[1752673110054,1.07436635,118750.0,118740.0,0.62529]
[1752673110254,1.24279835,118750.0,118740.0,0.62529]
[1752673110660,1.24479835,118750.0,118740.0,0.62529]
[1752673111363,0.6996119,118750.0,118740.0,0.62529]
[1752673111564,1.24479835,118750.0,118740.0,0.62529]
[1752673111767,1.07636635,118750.0,118740.0,0.62529]
[1752673112567,0.5311799,118750.0,118740.0,0.62529]
[1752673112868,0.5311799,118750.0,118740.0,0.7936841]
[1752673113263,0.5311799,118750.0,118740.0,0.62529]
[1752673113570,0.5301799,118750.0,118740.0,0.62529]
[1752673113970,1.07536635,118750.0,118740.0,0.62529]
[1752673115068,0.5301799,118750.0,118740.0,0.62529]
[1752673115268,1.07536635,118750.0,118740.0,0.62529]
[1752673116759,1.07536635,118750.0,118740.0,0.00421]
[1752673117173,1.57536635,118750.0,118740.0,0.00421]
[1752673118171,1.74379835,118750.0,118740.0,0.00421]
[1752673118366,0.168394,118740.0,118730.0,0.6206]
[1752673118668,0.71358045,118740.0,118730.0,0.6204]
[1752673119774,0.168394,118740.0,118730.0,0.7888082]
[1752673120176,0.168394,118740.0,118730.0,0.6204]
[1752673120571,0.168394,118740.0,118730.0,0.7888082]
[1752673120773,0.169394,118740.0,118730.0,0.7888082]
[1752673122374,0.1684082,118730.0,118720.0,0.1728324]
[1752673122572,0.1684082,118730.0,118720.0,0.62365]
[1752673122772,0.1684082,118730.0,118720.0,0.7878624]
[1752673123178,0.1684224,118720.0,118710.0,0.2528409]
[1752673123471,0.2105208,118730.0,118720.0,0.1684224]
[1752673123672,0.2105208,118730.0,118720.0,0.71360885]
[1752673123874,0.2105208,118730.0,118720.0,1.33288885]
[1752673125674,0.0842016,118740.0,118720.0,1.47238885]
[1752673125874,0.5712879,118750.0,118740.0,0.168394]
[1752673126174,0.6133851,118750.0,118740.0,0.787154]
[1752673127272,0.6133851,118750.0,118740.0,0.61876]
[1752673127877,0.168394,118740.0,118730.0,0.0002]
[1752673128073,0.1684082,118730.0,118720.0,0.1686224]
[1752673128272,0.1684082,118730.0,118720.0,0.7864624]
[1752673130482,0.1684082,118730.0,118720.0,0.61804]
[1752673130782,0.1684224,118720.0,118710.0,0.28724588]
[1752673131081,0.1684224,118720.0,118710.0,0.87437]
[1752673131282,0.1684224,118720.0,118710.0,0.87016]
[1752673131473,0.1684224,118720.0,118710.0,1.41534645]
[1752673131981,0.1684224,118720.0,118710.0,0.87016]
[1752673132177,0.1684224,118720.0,118710.0,1.41534645]
[1752673132482,0.1684224,118720.0,118710.0,1.44554233]
[1752673134084,0.1684224,118720.0,118710.0,1.41534645]
[1752673136377,0.1684224,118720.0,118710.0,1.44554233]
[1752673138586,0.1684224,118720.0,118710.0,0.19863248]
[1752673138779,0.1684224,118720.0,118710.0,0.74381893]
[1752673138975,0.1684224,118720.0,118710.0,1.35853893]
[1752673139180,0.1263125,118730.0,118720.0,0.1684224]
[1752673139181,0.1684179,118730.0,118720.0,0.1684224]
[1752673139384,0.655485,118750.0,118740.0,0.168394]
[1752673139677,0.613387,118750.0,118740.0,1.32994045]
[1752673140083,0.613387,118750.0,118740.0,0.784754]
[1752673140283,0.613387,118750.0,118740.0,1.32994045]
[1752673140985,0.614387,118750.0,118740.0,1.32994045]
[1752673141187,0.614387,118750.0,118740.0,0.784754]
[1752673141587,0.614387,118750.0,118740.0,1.32994045]
[1752673142585,0.3618,118750.0,118740.0,1.32994045]
[1752673142784,0.3618,118750.0,118740.0,1.46013633]
[1752673142984,0.3618,118750.0,118740.0,1.87856833]
[1752673143186,0.3618,118750.0,118740.0,1.62856833]
[1752673144181,0.5291799,118750.0,118740.0,1.46193633]
[1752673144387,0.5291799,118750.0,118740.0,0.74477633]
[1752673144586,0.5291799,118750.0,118740.0,1.33134045]
[1752673144787,0.5291799,118750.0,118740.0,0.786154]
[1752673145092,0.3608,118750.0,118740.0,1.33134045]
[1752673145291,0.3608,118750.0,118740.0,1.43134045]
[1752673145790,0.3608,118750.0,118740.0,1.46153633]
[1752673148492,0.52918,118750.0,118740.0,1.46153633]
[1752673148688,0.52918,118750.0,118740.0,1.46574633]
[1752673149387,0.52918,118750.0,118740.0,0.173604]
[1752673149593,0.52918,118750.0,118740.0,0.790284]
[1752673150394,0.52918,118750.0,118740.0,0.62189]
[1752673150587,0.52922,118750.0,118740.0,0.62189]
[1752673150782,1.07440645,118750.0,118740.0,0.00521]
[1752673150988,1.07440645,118750.0,118740.0,0.62169]
[1752673151182,0.52922,118750.0,118740.0,0.62169]
[1752673151694,1.07440645,118750.0,118740.0,0.62169]
[1752673152195,1.07440645,118750.0,118740.0,0.62069]
[1752673152391,1.07540645,118750.0,118740.0,0.62069]
[1752673154288,1.07540645,118750.0,118740.0,0.00421]
[1752673154491,1.07540645,118750.0,118730.0,0.61624]
[1752673154492,0.1683942,118740.0,118730.0,0.61624]
[1752673154695,0.71358065,118740.0,118730.0,0.61604]
[1752673155096,1.21358065,118740.0,118730.0,0.61604]
[1752673155984,0.1684084,118730.0,118720.0,0.00441]
[1752673156189,0.71359485,118730.0,118720.0,0.62029]
[1752673156890,0.71359485,118730.0,118720.0,0.61608]
[1752673159896,0.1684225,118720.0,118710.0,0.00441]
[1752673160097,0.71360895,118720.0,118710.0,0.61929]
[1752673160297,0.71360895,118720.0,118710.0,0.61508]
[1752673160495,0.71360895,118720.0,118700.0,1.85253948]
[1752673160496,0.1684367,118710.0,118700.0,1.52512]
[1752673160692,0.1684367,118710.0,118700.0,0.2315625]
[1752673160693,0.71362315,118710.0,118700.0,0.2315625]
[1752673161001,0.1684935,118670.0,118660.0,0.6159426]
[1752673161200,0.71367995,118670.0,118660.0,0.6159426]
[1752673162003,0.1685077,118660.0,118650.0,1.9539319]
[1752673162298,0.1685077,118660.0,118650.0,0.7895719]
[1752673162503,0.1685219,118650.0,118640.0,0.2527916]
[1752673162702,0.1685219,118650.0,118640.0,0.8695116]
[1752673163003,0.1685219,118650.0,118640.0,0.93842037]
[1752673163501,0.1685219,118650.0,118640.0,1.48360682]
[1752673164397,0.2106466,118660.0,118650.0,0.1715218]
[1752673164603,0.1685175,118660.0,118650.0,0.1715218]
[1752673164803,0.1685175,118660.0,118650.0,0.1685218]
[1752673165101,0.2527369,118680.0,118670.0,0.2105978]
[1752673165292,0.1684938,118680.0,118670.0,0.8268378]
[1752673165488,0.1684938,118680.0,118670.0,0.7847174]
[1752673165704,0.71368025,118680.0,118670.0,0.61624]
[1752673166499,0.1684934,118670.0,118660.0,0.252758]
[1752673166700,0.1684934,118670.0,118660.0,0.869078]
[1752673166899,0.1684934,118670.0,118660.0,1.41426445]
[1752673167100,0.1684934,118670.0,118660.0,0.868838]
[1752673167398,0.1684934,118670.0,118660.0,1.41402445]
[1752673167997,0.2527286,118680.0,118670.0,0.1684934]
[1752673168194,0.2527286,118680.0,118670.0,0.71367985]
[1752673168397,0.2527286,118680.0,118670.0,0.1684934]
[1752673169291,0.1684934,118670.0,118660.0,0.7855831]
[1752673170097,0.1684934,118670.0,118660.0,1.33076955]
[1752673170495,0.1684934,118670.0,118660.0,0.7855831]
[1752673170703,0.1684934,118670.0,118660.0,0.61708]
[1752673171292,0.1684934,118670.0,118660.0,0.7855876]
[1752673172104,0.1684934,118670.0,118660.0,0.61708]
[1752673172306,0.71367985,118670.0,118660.0,0.61708]
[1752673172897,0.1684934,118670.0,118660.0,0.61708]
[1752673173102,0.1684934,118670.0,118660.0,0.61608]
[1752673173298,0.71367985,118670.0,118660.0,0.61608]
[1752673173605,0.71367985,118670.0,118660.0,0.61708]
[1752673173900,0.71367985,118670.0,118660.0,0.6162]
[1752673174402,0.1684934,118670.0,118660.0,0.6162]
[1752673174594,0.1684934,118670.0,118660.0,0.7847076]
[1752673174902,0.1684934,118670.0,118660.0,0.6162]
[1752673175502,0.1684934,118670.0,118660.0,0.7847076]
[1752673175700,0.1684934,118670.0,118660.0,0.6162]
[1752673176403,0.1684934,118670.0,118660.0,0.7847076]
[1752673176805,0.1684934,118670.0,118660.0,0.6162]
[1752673177004,0.1684934,118670.0,118660.0,0.7847076]
[1752673178799,0.1684934,118670.0,118660.0,0.6162]
[1752673179203,0.71367985,118670.0,118660.0,0.6162]
[1752673180603,0.71367985,118670.0,118660.0,0.61428]
[1752673183103,1.07367985,118670.0,118660.0,0.001]
[1752673183608,0.72367985,118670.0,118660.0,0.001]
[1752673183801,1.22367985,118670.0,118660.0,0.001]
[1752673184105,0.5,118670.0,118660.0,0.71469415]
[1752673184303,0.6684935,118670.0,118660.0,0.71469415]
[1752673184607,0.5,118670.0,118660.0,0.71469415]
[1752673185207,0.6684935,118670.0,118660.0,0.71469415]
[1752673185804,0.1684935,118670.0,118660.0,0.71469415]
[1752673187106,0.2527347,118680.0,118670.0,0.1684936]
[1752673187309,0.0842345,118690.0,118680.0,0.1684793]
[1752673187509,0.2527106,118690.0,118680.0,0.71366575]
[1752673188011,0.2527106,118690.0,118680.0,0.1684793]
[1752673188808,0.2537106,118690.0,118680.0,0.1684793]
[1752673189802,0.001,118690.0,118680.0,0.1684793]
[1752673190003,0.001,118690.0,118680.0,0.71366575]
[1752673190409,0.001,118690.0,118680.0,0.81366575]
[1752673191109,0.1694652,118690.0,118680.0,0.1684793]
[1752673191311,0.1694652,118690.0,118680.0,0.7796393]
[1752673191506,0.1694652,118690.0,118680.0,0.1684793]
[1752673191810,0.1684794,118680.0,118670.0,0.1686936]
[1752673192112,0.1684794,118680.0,118670.0,0.7794536]
[1752673192304,0.1684794,118680.0,118670.0,0.61096]
[1752673192502,0.1684936,118670.0,118660.0,1.3336678]
[1752673192806,0.1684936,118670.0,118660.0,1.9443878]
[1752673194607,0.1684936,118670.0,118660.0,1.9453878]
[1752673195006,0.1684936,118670.0,118660.0,1.77688]
[1752673195308,0.71368005,118670.0,118660.0,1.77688]
[1752673195509,0.71368005,118670.0,118660.0,0.61192]
[1752673195811,0.71368005,118670.0,118660.0,0.61613]
[1752673196411,0.1684936,118670.0,118660.0,0.61613]
[1752673196610,0.1684936,118670.0,118660.0,0.7846378]
[1752673196810,0.1684936,118670.0,118660.0,0.61613]
[1752673197213,0.1684936,118670.0,118660.0,0.7846378]
[1752673197509,0.1684936,118670.0,118660.0,0.61613]
[1752673198216,0.1684936,118670.0,118660.0,0.7846378]
[1752673199211,0.1684936,118670.0,118660.0,0.61613]
[1752673199811,0.1684936,118670.0,118660.0,0.7846379]
[1752673200013,0.1684936,118670.0,118660.0,0.61613]
[1752673200412,0.1684936,118670.0,118660.0,0.7846379]
[1752673200612,0.1684936,118670.0,118660.0,0.61613]
[1752673201306,0.71368005,118670.0,118660.0,0.00521]
[1752673201506,0.74368005,118670.0,118660.0,0.61421]
[1752673201813,0.6984936,118670.0,118660.0,0.61421]
[1752673202015,1.24368005,118670.0,118660.0,0.61421]
[1752673202202,0.6984936,118670.0,118660.0,0.61421]
[1752673203009,0.6984936,118670.0,118660.0,0.7827179]
[1752673203413,0.6984936,118670.0,118660.0,0.61421]
[1752673203614,0.1984936,118670.0,118660.0,0.7827179]
[1752673204907,0.2948543,118680.0,118670.0,0.1684938]
[1752673205113,0.2527314,118680.0,118670.0,0.1684938]
[1752673206111,0.1684938,118670.0,118660.0,0.0012]
[1752673206319,0.71368025,118670.0,118660.0,0.60984]
[1752673206515,0.1684938,118670.0,118660.0,0.001]
[1752673206722,0.71368025,118670.0,118660.0,0.001]
[1752673206919,0.74368025,118670.0,118660.0,0.00521]
[1752673207314,0.80399852,118670.0,118660.0,0.00521]
[1752673207520,1.14399852,118670.0,118660.0,0.00521]
[1752673208022,1.64399852,118670.0,118660.0,0.00521]
[1752673208424,1.64399852,118670.0,118660.0,0.00421]
[1752673209124,1.64399852,118670.0,118660.0,0.00521]
[1752673209319,1.32399852,118670.0,118660.0,0.00521]
[1752673209715,1.26368025,118670.0,118660.0,0.00521]
[1752673210120,1.33399852,118670.0,118660.0,0.00521]
[1752673210319,1.27368025,118670.0,118660.0,0.00521]
[1752673210820,1.55368025,118670.0,118660.0,0.00521]
[1752673211119,1.55368025,118670.0,118630.0,0.8184743]
[1752673211120,0.2528235,118640.0,118630.0,0.8184743]
[1752673211519,0.2528235,118640.0,118630.0,0.8606108]
[1752673212614,0.79800995,118640.0,118630.0,0.6078]
[1752673212813,0.79800995,118640.0,118630.0,0.6118]
[1752673213023,0.79800995,118640.0,118630.0,0.7803506]
[1752673213420,0.2528235,118640.0,118630.0,0.7803506]
[1752673214125,0.3228235,118640.0,118630.0,0.7803506]
[1752673214722,0.86800995,118640.0,118630.0,0.6118]
[1752673214914,0.86800995,118640.0,118630.0,0.7803506]
[1752673215316,0.3228235,118640.0,118630.0,0.7803506]
[1752673216730,0.3228235,118640.0,118630.0,0.6118]
[1752673216922,0.3228235,118640.0,118630.0,0.7815906]
[1752673217629,0.3228235,118640.0,118630.0,0.61304]
[1752673218024,0.3228235,118640.0,118630.0,0.004]
[1752673218224,0.1685506,118630.0,118620.0,0.00421]
[1752673218530,0.77373705,118630.0,118620.0,0.00421]
[1752673218832,0.0421447,118610.0,118580.0,1.20386481]
[1752673219024,0.71379385,118590.0,118580.0,1.42658933]
[1752673219224,0.2186074,118590.0,118580.0,2.03614933]
[1752673219728,0.76379385,118590.0,118580.0,7.577e-05]
[1752673219919,0.76379385,118590.0,118540.0,0.2529991]
[1752673219920,0.0843302,118560.0,118540.0,0.2529991]
[1752673220123,0.1686643,118550.0,118540.0,0.2951679]
[1752673220331,0.1786643,118550.0,118540.0,0.8627191]
[1752673220734,0.1786643,118550.0,118540.0,0.8626391]
[1752673221031,0.17872969,118550.0,118540.0,0.2108309]
[1752673221431,0.1686785,118540.0,118530.0,0.93000642]
[1752673221728,0.17877246,118540.0,118530.0,0.93000642]
[1752673222230,0.17877246,118540.0,118530.0,0.7781328]
[1752673222231,0.01009396,118540.0,118530.0,0.7781328]
[1752673222430,0.17877246,118540.0,118530.0,0.786557]
[1752673222625,0.17877246,118540.0,118530.0,0.1686928]
[1752673222832,0.17877246,118540.0,118530.0,0.7780528]
[1752673223026,0.01009396,118540.0,118530.0,1.32723925]
[1752673223230,0.05009396,118540.0,118530.0,1.32723925]
[1752673223730,0.21877246,118540.0,118530.0,1.32723925]
[1752673223923,0.21877246,118540.0,118530.0,0.61336]
[1752673224330,0.76395891,118540.0,118530.0,0.61336]
[1752673224728,0.76395891,118540.0,118530.0,0.7820527]
[1752673224924,0.77386495,118540.0,118530.0,0.004]
[1752673225227,1.04386495,118540.0,118530.0,0.004]
[1752673225731,0.1686927,118530.0,118520.0,0.00421]
[1752673225926,1.64363915,118530.0,118520.0,0.00421]
[1752673226128,0.1687212,118510.0,118500.0,0.050001]
[1752673226323,0.06,118510.0,118500.0,0.8282964]
[1752673226529,0.2287212,118510.0,118500.0,0.8282964]
[1752673226733,0.2287212,118510.0,118500.0,0.2187364]
[1752673227332,0.06,118510.0,118500.0,1.37336285]
[1752673227623,0.02008744,118510.0,118500.0,0.76392285]
[1752673227830,0.02008744,118510.0,118500.0,1.37404285]
[1752673228926,0.02308744,118510.0,118500.0,1.37404285]
[1752673229633,0.00308744,118510.0,118500.0,1.37404285]
[1752673229837,0.01308744,118510.0,118500.0,1.37356285]
[1752673230336,0.253017,118550.0,118510.0,0.0421794]
[1752673230528,0.2708456,118550.0,118540.0,0.1686785]
[1752673230729,0.2708456,118550.0,118540.0,0.7786385]
[1752673230929,0.2529692,118570.0,118540.0,1.15514645]
[1752673231239,0.5608068,118570.0,118560.0,0.1686501]
[1752673231434,0.5608068,118570.0,118560.0,0.7789301]
[1752673231932,0.5608068,118570.0,118560.0,0.1686501]
[1752673232132,0.1686501,118560.0,118550.0,0.0002]
[1752673232324,0.1686643,118550.0,118540.0,0.1688674]
[1752673232628,0.1686785,118540.0,118530.0,0.2953978]
[1752673232933,0.1886785,118540.0,118530.0,0.3051978]
[1752673233233,0.1886785,118540.0,118530.0,0.9153578]
[1752673233434,0.02,118540.0,118530.0,1.46054425]
[1752673233635,0.1686739,118550.0,118540.0,0.1686785]
[1752673233833,0.5086739,118550.0,118540.0,0.1686785]
[1752673234033,0.1686739,118550.0,118540.0,0.1686785]
[1752673234232,0.5086739,118550.0,118540.0,0.1686785]
[1752673234933,0.5086739,118550.0,118540.0,0.7784785]
[1752673235642,0.5116739,118550.0,118540.0,0.7784785]
[1752673235826,0.223,118550.0,118540.0,1.32366495]
[1752673236033,0.233,118550.0,118540.0,1.32366495]
[1752673236433,0.233,118550.0,118540.0,1.33366495]
[1752673236737,0.4016643,118550.0,118540.0,1.32346495]
[1752673237031,0.233,118550.0,118540.0,1.32346495]
[1752673237335,0.023,118550.0,118540.0,1.33346495]
[1752673238230,0.1916643,118550.0,118540.0,1.33346495]
[1752673238436,0.1916643,118550.0,118540.0,1.33326495]
[1752673238643,0.1916643,118550.0,118540.0,1.33747495]
[1752673238942,0.023,118550.0,118540.0,1.33747495]
[1752673239436,0.003,118550.0,118540.0,1.33747495]
[1752673239638,0.013,118550.0,118540.0,1.33747495]
[1752673240341,0.1816648,118550.0,118540.0,0.72807495]
[1752673240638,0.1816648,118550.0,118540.0,0.782649]
[1752673240826,0.1816648,118550.0,118540.0,0.792649]
[1752673241031,0.1816648,118550.0,118540.0,1.32783545]
[1752673241635,0.193,118550.0,118540.0,1.33783545]
[1752673241839,0.193,118550.0,118540.0,1.32787545]
[1752673242036,0.3616649,118550.0,118540.0,0.1728891]
[1752673242232,0.90685135,118550.0,118540.0,0.7828491]
[1752673242536,0.3616649,118550.0,118540.0,0.7828491]
[1752673242838,0.3916649,118550.0,118540.0,0.7833291]
[1752673243831,0.3916649,118550.0,118540.0,0.00421]
[1752673244037,0.3916649,118550.0,118540.0,0.61469]
[1752673244337,0.3916649,118550.0,118540.0,0.61465]
[1752673244833,0.93685135,118550.0,118540.0,0.00421]
[1752673245231,0.1686791,118540.0,118530.0,0.0002]
[1752673245428,0.1686933,118530.0,118520.0,0.1689076]
[1752673245638,0.2186933,118530.0,118520.0,0.7792676]
[1752673246538,0.2186933,118530.0,118520.0,0.61056]
[1752673247137,0.2186933,118530.0,118520.0,0.7792676]
[1752673247741,0.2186933,118530.0,118520.0,0.61056]
[1752673248130,0.2186933,118530.0,118520.0,0.61256]
[1752673248335,0.76387975,118530.0,118520.0,0.6118]
[1752673250644,0.76387975,118530.0,118520.0,0.7805226]
[1752673251141,0.76387975,118530.0,118520.0,0.6118]
[1752673252040,0.76387975,118530.0,118520.0,0.002]
[1752673252233,0.71387975,118530.0,118520.0,0.002]
[1752673252434,1.73262375,118530.0,118520.0,0.002]
[1752673252644,1.1874373,118530.0,118520.0,0.002]
[1752673252837,1.73262375,118530.0,118520.0,0.002]
[1752673253043,0.1687226,118520.0,118510.0,0.00441]
[1752673253245,1.04390905,118520.0,118510.0,0.00421]
[1752673253441,0.1687369,118510.0,118500.0,0.658801]
[1752673253743,1.07392335,118510.0,118500.0,0.8273521]
[1752673253941,1.07392335,118510.0,118500.0,0.2187521]
[1752673254140,1.07392335,118510.0,118500.0,0.050001]
[1752673255246,1.07392335,118510.0,118500.0,0.051001]
[1752673255540,1.68204335,118510.0,118500.0,0.051001]
[1752673256044,1.85081135,118510.0,118500.0,0.0296185]
[1752673256444,1.36583187,118510.0,118500.0,0.0296185]
[1752673256744,2.18204335,118510.0,118500.0,0.0296185]
[1752673257339,1.87204335,118510.0,118500.0,0.0296185]
[1752673257735,1.87204335,118510.0,118500.0,0.0286185]
[1752673257943,1.87604335,118510.0,118500.0,0.0296185]
[1752673258342,2.18604335,118510.0,118500.0,0.0296185]
[1752673260942,0.0843861,118490.0,118460.0,0.58738655]
[1752673261147,0.504,118510.0,118500.0,0.1687521]
[1752673261339,0.554,118510.0,118500.0,0.7860721]
[1752673261545,0.554,118510.0,118500.0,0.72393855]
[1752673261743,0.7227379,118510.0,118500.0,0.01842503]
[1752673261943,0.7227379,118510.0,118500.0,0.79485713]
[1752673262348,0.2227379,118510.0,118500.0,0.79485713]
[1752673262846,0.2227379,118510.0,118500.0,0.60768]
[1752673263043,0.76792435,118510.0,118500.0,0.60768]
[1752673263750,0.76792435,118510.0,118500.0,0.7764321]
[1752673263946,0.76792435,118510.0,118500.0,0.7774321]
[1752673264148,0.2227379,118510.0,118500.0,0.7774213]
[1752673264449,0.2197379,118510.0,118500.0,0.7784213]
[1752673264949,0.2197379,118510.0,118500.0,0.60968]
[1752673265351,0.2197379,118510.0,118500.0,0.002]
[1752673265548,0.76492435,118510.0,118500.0,0.002]